[Event "*** Titled Tuesday 3|2 Blitz"]
[Site "Chess.com"]
[Date "2017.06.06"]
[Round "10"]
[White "Enzy63"]
[Black "angieflynn"]
[Result "1-0"]
[WhiteElo "2047"]
[BlackElo "1760"]
[TimeControl "180+2"]
[EndTime "15:59:54 PDT"]
[Termination "Enzy63 won by resignation"]

1. d4 {[%clk 0:03:02]} 1... f5 {[%clk 0:02:54.4]} 2. Nf3 {[%clk 0:03:01]} 2...
Nf6 {[%clk 0:02:53]} 3. g3 {[%clk 0:03:02.3]} 3... e6 {[%clk 0:02:53.1]} 4. Bg2
{[%clk 0:03:03.8]} 4... d5 {[%clk 0:02:52.8]} 5. O-O {[%clk 0:03:01.8]} 5... Bd6
{[%clk 0:02:53.1]} 6. c4 {[%clk 0:03:03]} 6... O-O {[%clk 0:02:46.8]} 7. b3
{[%clk 0:03:04]} 7... b6 {[%clk 0:02:40.6]} 8. Ne5 {[%clk 0:03:03.7]} 8... Bb7
{[%clk 0:02:26.6]} 9. Nc3 {[%clk 0:03:00.3]} 9... c5 {[%clk 0:02:21.8]} 10. e3
{[%clk 0:02:41.1]} 10... Nbd7 {[%clk 0:02:13.4]} 11. cxd5 {[%clk 0:02:28]} 11...
exd5 {[%clk 0:02:07.8]} 12. Nc4 {[%clk 0:02:12.7]} 12... Bc7 {[%clk 0:02:04.4]}
13. Nb5 {[%clk 0:02:00.9]} 13... Ba6 {[%clk 0:01:55.8]} 14. Nca3 {[%clk
0:01:29.9]} 14... Bxb5 {[%clk 0:01:25.7]} 15. Nxb5 {[%clk 0:01:30.2]} 15... a6
{[%clk 0:01:27.6]} 16. Nc3 {[%clk 0:01:29.6]} 16... Nb8 {[%clk 0:01:25.3]} 17.
dxc5 {[%clk 0:01:20.5]} 17... bxc5 {[%clk 0:01:25.2]} 18. Nxd5 {[%clk
0:01:20.4]} 18... Nbd7 {[%clk 0:01:19.4]} 19. Bb2 {[%clk 0:01:10.6]} 19... Rb8
{[%clk 0:01:13.7]} 20. Qe2 {[%clk 0:01:03.8]} 20... Ne5 {[%clk 0:01:08.7]} 21.
Rfd1 {[%clk 0:01:02.3]} 21... Qc8 {[%clk 0:00:55.1]} 22. Ne7+ {[%clk 0:01:02]}
1-0

[Event "*** Titled Tuesday 3|2 Blitz"]
[Site "Chess.com"]
[Date "2017.06.06"]
[Round "10"]
[White "SabinaFoisor"]
[Black "PaulfromSPb"]
[Result "0-1"]
[WhiteElo "2307"]
[BlackElo "2580"]
[TimeControl "180+2"]
[EndTime "16:00:03 PDT"]
[Termination "PaulfromSPb won by resignation"]

1. d4 {[%clk 0:02:59.4]} 1... Nf6 {[%clk 0:03:00.4]} 2. c4 {[%clk 0:02:59]} 2...
e6 {[%clk 0:03:00.4]} 3. Nf3 {[%clk 0:02:58.5]} 3... b6 {[%clk 0:03:01.1]} 4. g3
{[%clk 0:02:58.6]} 4... Ba6 {[%clk 0:03:01.3]} 5. Nbd2 {[%clk 0:02:56.9]} 5...
c5 {[%clk 0:02:53.2]} 6. Bg2 {[%clk 0:02:52.4]} 6... Bb7 {[%clk 0:02:52.2]} 7.
dxc5 {[%clk 0:02:51.6]} 7... Bxc5 {[%clk 0:02:51.3]} 8. O-O {[%clk 0:02:51.6]}
8... O-O {[%clk 0:02:51.7]} 9. b3 {[%clk 0:02:49.1]} 9... d5 {[%clk 0:02:51.1]}
10. Bb2 {[%clk 0:02:49.2]} 10... Nbd7 {[%clk 0:02:51.8]} 11. cxd5 {[%clk
0:02:48.1]} 11... Bxd5 {[%clk 0:02:51.3]} 12. Rc1 {[%clk 0:02:42.1]} 12... Qe7
{[%clk 0:02:48.7]} 13. Nc4 {[%clk 0:02:20.5]} 13... Rfd8 {[%clk 0:02:47.9]} 14.
Qc2 {[%clk 0:02:18.7]} 14... Rac8 {[%clk 0:02:46.9]} 15. Qb1 {[%clk 0:02:18.3]}
15... b5 {[%clk 0:02:38.7]} 16. Nce5 {[%clk 0:02:16.1]} 16... Nxe5 {[%clk
0:02:34.6]} 17. Bxe5 {[%clk 0:02:16.9]} 17... Ng4 {[%clk 0:02:29.8]} 18. Bb2
{[%clk 0:02:09]} 18... f5 {[%clk 0:02:21.5]} 19. h3 {[%clk 0:02:07.2]} 19... Nf6
{[%clk 0:02:18.4]} 20. Ne5 {[%clk 0:01:50.3]} 20... Ne4 {[%clk 0:02:11.5]} 21.
Bxe4 {[%clk 0:01:30.9]} 21... Bxe4 {[%clk 0:02:10.2]} 22. Qa1 {[%clk 0:01:31.6]}
22... Qg5 {[%clk 0:02:06.1]} 23. Kh2 {[%clk 0:01:24.9]} 23... f4 {[%clk
0:02:05.5]} 24. g4 {[%clk 0:01:12.7]} 24... Rd2 {[%clk 0:02:01.7]} 25. b4 {[%clk
0:01:07.9]} 25... f3 {[%clk 0:01:58.8]} 26. e3 {[%clk 0:01:02]} 26... Qxe3
{[%clk 0:01:40.3]} 27. Rxc5 {[%clk 0:00:53.5]} 27... Rxf2+ {[%clk 0:01:40.4]}
28. Kh1 {[%clk 0:00:46]} 28... Rxf1+ {[%clk 0:01:36.4]} 29. Qxf1 {[%clk
0:00:42]} 29... f2+ {[%clk 0:01:37.6]} 0-1

[Event "*** Titled Tuesday 3|2 Blitz"]
[Site "Chess.com"]
[Date "2017.06.06"]
[Round "10"]
[White "ANLex1963"]
[Black "fidetrainerNET"]
[Result "0-1"]
[WhiteElo "2194"]
[BlackElo "2128"]
[TimeControl "180+2"]
[EndTime "16:01:18 PDT"]
[Termination "fidetrainerNET won by resignation"]

1. Nf3 {[%clk 0:03:02]} 1... c5 {[%clk 0:02:38.6]} 2. g3 {[%clk 0:03:00.5]} 2...
Nc6 {[%clk 0:02:40.5]} 3. Bg2 {[%clk 0:03:00.2]} 3... d5 {[%clk 0:02:42.4]} 4.
O-O {[%clk 0:02:59.2]} 4... e5 {[%clk 0:02:43.4]} 5. d3 {[%clk 0:02:59.7]} 5...
Nf6 {[%clk 0:02:42.6]} 6. c4 {[%clk 0:02:57.1]} 6... d4 {[%clk 0:02:41.2]} 7. e3
{[%clk 0:02:46.1]} 7... Bd6 {[%clk 0:02:38.5]} 8. exd4 {[%clk 0:02:46.2]} 8...
Nxd4 {[%clk 0:02:40.4]} 9. Nxd4 {[%clk 0:02:39.5]} 9... cxd4 {[%clk 0:02:42.3]}
10. Qa4+ {[%clk 0:02:35.6]} 10... Nd7 {[%clk 0:02:37.3]} 11. b4 {[%clk
0:02:29.4]} 11... O-O {[%clk 0:02:33.6]} 12. c5 {[%clk 0:02:29.9]} 12... Bc7
{[%clk 0:02:31.9]} 13. Na3 {[%clk 0:02:27.8]} 13... a6 {[%clk 0:02:20]} 14. Nc4
{[%clk 0:02:24.8]} 14... Rb8 {[%clk 0:02:11.5]} 15. Ba3 {[%clk 0:02:14.4]} 15...
f5 {[%clk 0:02:05]} 16. Qb3 {[%clk 0:02:08.8]} 16... Kh8 {[%clk 0:02:03.1]} 17.
f4 {[%clk 0:02:04.6]} 17... exf4 {[%clk 0:02:00.1]} 18. gxf4 {[%clk 0:02:03.8]}
18... Nf6 {[%clk 0:02:00.1]} 19. Ne5 {[%clk 0:01:55.9]} 19... Bxe5 {[%clk
0:01:56.2]} 20. fxe5 {[%clk 0:01:55.2]} 20... Ng4 {[%clk 0:01:58.1]} 21. Rae1
{[%clk 0:01:05.1]} 21... Re8 {[%clk 0:01:19.6]} 22. e6 {[%clk 0:00:43.6]} 22...
Qh4 {[%clk 0:01:12.3]} 23. h3 {[%clk 0:00:41.8]} 23... Ne3 {[%clk 0:01:12.3]}
24. Rf2 {[%clk 0:00:30.1]} 24... Bxe6 {[%clk 0:01:08.6]} 25. Qa4 {[%clk
0:00:21.5]} 25... Nxg2 {[%clk 0:01:06.7]} 0-1

[Event "*** Titled Tuesday 3|2 Blitz"]
[Site "Chess.com"]
[Date "2017.06.06"]
[Round "10"]
[White "Frolik67"]
[Black "Journey_to_GrandMaster_YT"]
[Result "1-0"]
[WhiteElo "2332"]
[BlackElo "2349"]
[TimeControl "180+2"]
[EndTime "16:01:29 PDT"]
[Termination "Frolik67 won by resignation"]

1. e4 {[%clk 0:03:02]} 1... d6 {[%clk 0:03:01.1]} 2. d4 {[%clk 0:03:02]} 2...
Nf6 {[%clk 0:03:02.3]} 3. Nc3 {[%clk 0:03:03]} 3... e5 {[%clk 0:03:03.3]} 4.
dxe5 {[%clk 0:03:04.1]} 4... dxe5 {[%clk 0:03:04.5]} 5. Bg5 {[%clk 0:03:05.6]}
5... Qxd1+ {[%clk 0:02:41.5]} 6. Rxd1 {[%clk 0:03:07.5]} 6... Bb4 {[%clk
0:02:39.7]} 7. Ne2 {[%clk 0:03:05.2]} 7... Be6 {[%clk 0:02:40.3]} 8. a3 {[%clk
0:03:04.6]} 8... Bd6 {[%clk 0:02:37.3]} 9. Bxf6 {[%clk 0:03:04.7]} 9... gxf6
{[%clk 0:02:36.9]} 10. Ng3 {[%clk 0:03:05.5]} 10... a6 {[%clk 0:02:35.8]} 11.
Nd5 {[%clk 0:02:59.9]} 11... Nd7 {[%clk 0:02:30.8]} 12. c4 {[%clk 0:02:57.2]}
12... Rd8 {[%clk 0:02:27.1]} 13. b4 {[%clk 0:02:57]} 13... c6 {[%clk 0:02:24.4]}
14. Ne3 {[%clk 0:02:54.5]} 14... Bc7 {[%clk 0:02:13.6]} 15. Be2 {[%clk 0:02:45]}
15... Nf8 {[%clk 0:01:55.9]} 16. O-O {[%clk 0:02:37.8]} 16... Ng6 {[%clk
0:01:50.4]} 17. Nh5 {[%clk 0:02:30.1]} 17... Nf4 {[%clk 0:01:24.1]} 18. Nxf4
{[%clk 0:02:26.6]} 18... exf4 {[%clk 0:01:24.6]} 19. Nf5 {[%clk 0:02:27.8]}
19... O-O {[%clk 0:01:21.7]} 20. c5 {[%clk 0:02:17.8]} 20... Bxf5 {[%clk
0:00:56.3]} 21. exf5 {[%clk 0:02:17.5]} 21... Rxd1 {[%clk 0:00:56.9]} 22. Rxd1
{[%clk 0:02:19.4]} 22... Rd8 {[%clk 0:00:58.8]} 23. Rxd8+ {[%clk 0:02:08.4]}
23... Bxd8 {[%clk 0:00:59.7]} 24. a4 {[%clk 0:02:09.5]} 24... a5 {[%clk
0:00:51.2]} 25. b5 {[%clk 0:02:05.6]} 25... cxb5 {[%clk 0:00:45.8]} 26. Bxb5
{[%clk 0:02:03.4]} 26... Kf8 {[%clk 0:00:38.2]} 27. Kf1 {[%clk 0:02:03.6]} 27...
Be7 {[%clk 0:00:36.9]} 28. c6 {[%clk 0:02:04.1]} 28... bxc6 {[%clk 0:00:30.2]}
29. Bxc6 {[%clk 0:02:06]} 29... Bc5 {[%clk 0:00:29.4]} 30. Ke2 {[%clk
0:02:06.3]} 30... Ke7 {[%clk 0:00:29]} 31. Kf3 {[%clk 0:02:06.4]} 31... Kd6
{[%clk 0:00:28.9]} 32. Be4 {[%clk 0:02:05.4]} 32... Ke5 {[%clk 0:00:29.6]} 33.
Bc2 {[%clk 0:02:05.8]} 33... h6 {[%clk 0:00:27.6]} 34. Ke2 {[%clk 0:02:04.7]}
34... Bb6 {[%clk 0:00:25.8]} 35. f3 {[%clk 0:02:04.7]} 35... Bf2 {[%clk
0:00:24.6]} 36. Kxf2 {[%clk 0:02:04.8]} 36... Kd4 {[%clk 0:00:16.1]} 37. Ke2
{[%clk 0:02:03.2]} 37... Kc3 {[%clk 0:00:16.7]} 38. Kd1 {[%clk 0:02:04.2]} 38...
Kb4 {[%clk 0:00:17]} 39. Kd2 {[%clk 0:02:04.7]} 39... Kc4 {[%clk 0:00:18]} 40.
Bd1 {[%clk 0:02:03]} 40... Kb4 {[%clk 0:00:18.8]} 41. Kd3 {[%clk 0:02:04]} 41...
Kc5 {[%clk 0:00:15.7]} 42. Ke4 {[%clk 0:02:04.4]} 42... Kc4 {[%clk 0:00:15]} 43.
Kxf4 {[%clk 0:02:05.3]} 43... Kd4 {[%clk 0:00:14.8]} 44. Bb3 {[%clk 0:02:05.9]}
1-0

[Event "*** Titled Tuesday 3|2 Blitz"]
[Site "Chess.com"]
[Date "2017.06.06"]
[Round "10"]
[White "dolynachess"]
[Black "GianmarcoVaR"]
[Result "0-1"]
[WhiteElo "2312"]
[BlackElo "2438"]
[TimeControl "180+2"]
[EndTime "16:01:32 PDT"]
[Termination "GianmarcoVaR won by resignation"]

1. c4 {[%clk 0:03:02]} 1... g6 {[%clk 0:01:51.3]} 2. Nc3 {[%clk 0:03:01.5]} 2...
Bg7 {[%clk 0:01:52.6]} 3. g3 {[%clk 0:03:00]} 3... d6 {[%clk 0:01:54.5]} 4. Bg2
{[%clk 0:03:01.3]} 4... e5 {[%clk 0:01:55.8]} 5. Nf3 {[%clk 0:03:02.4]} 5... f5
{[%clk 0:01:57.4]} 6. O-O {[%clk 0:03:03.2]} 6... Nf6 {[%clk 0:01:58.6]} 7. d3
{[%clk 0:03:04.6]} 7... O-O {[%clk 0:02:00.2]} 8. Bg5 {[%clk 0:03:06]} 8... h6
{[%clk 0:02:01.5]} 9. Bxf6 {[%clk 0:03:07.5]} 9... Qxf6 {[%clk 0:02:02.4]} 10.
Rb1 {[%clk 0:03:07.5]} 10... g5 {[%clk 0:02:03.1]} 11. Nd2 {[%clk 0:03:07.2]}
11... g4 {[%clk 0:02:02.8]} 12. b4 {[%clk 0:03:06.9]} 12... h5 {[%clk
0:02:03.8]} 13. b5 {[%clk 0:03:08]} 13... h4 {[%clk 0:02:04.9]} 14. Nd5 {[%clk
0:03:09]} 14... Qf7 {[%clk 0:02:05.2]} 15. f3 {[%clk 0:02:54.1]} 15... hxg3
{[%clk 0:02:00.6]} 16. fxg4 {[%clk 0:02:54.6]} 16... c6 {[%clk 0:01:52]} 17.
bxc6 {[%clk 0:02:47.6]} 17... bxc6 {[%clk 0:01:53.9]} 18. gxf5 {[%clk
0:02:31.9]} 18... Qh5 {[%clk 0:01:47.1]} 19. hxg3 {[%clk 0:02:22.6]} 19... Bxf5
{[%clk 0:01:38.5]} 20. Ne7+ {[%clk 0:01:59.2]} 20... Kh8 {[%clk 0:01:38]} 21.
Nxf5 {[%clk 0:01:55.3]} 21... Rxf5 {[%clk 0:01:38.5]} 22. Rxf5 {[%clk 0:01:55]}
22... Qxf5 {[%clk 0:01:39.6]} 23. Ne4 {[%clk 0:01:52.1]} 23... Bh6 {[%clk
0:01:38.5]} 24. Bf3 {[%clk 0:01:43.1]} 24... Qh3 {[%clk 0:01:29.4]} 25. Bg2
{[%clk 0:01:21.7]} 25... Be3+ {[%clk 0:01:29.3]} 26. Kf1 {[%clk 0:01:22.2]}
26... Qh2 {[%clk 0:01:24.7]} 27. Nf2 {[%clk 0:01:10.1]} 27... Nd7 {[%clk
0:01:17.8]} 28. Qc1 {[%clk 0:00:30.2]} 28... Bxc1 {[%clk 0:01:03.3]} 29. Rxc1
{[%clk 0:00:32.1]} 29... Rf8 {[%clk 0:01:00.8]} 30. g4 {[%clk 0:00:29.1]} 30...
Nf6 {[%clk 0:00:57.4]} 31. Bf3 {[%clk 0:00:27.7]} 31... Nxg4 {[%clk 0:00:45]}
32. Nxg4 {[%clk 0:00:26.1]} 32... Qf4 {[%clk 0:00:44.6]} 33. Rb1 {[%clk
0:00:19.1]} 33... Qxg4 {[%clk 0:00:45]} 0-1

[Event "*** Titled Tuesday 3|2 Blitz"]
[Site "Chess.com"]
[Date "2017.06.06"]
[Round "10"]
[White "GameOverBro"]
[Black "dinevmk"]
[Result "1-0"]
[WhiteElo "2248"]
[BlackElo "2035"]
[TimeControl "180+2"]
[EndTime "16:01:32 PDT"]
[Termination "GameOverBro won on time"]

1. e4 {[%clk 0:02:31.5]} 1... c5 {[%clk 0:02:56.2]} 2. Ne2 {[%clk 0:02:32]} 2...
e6 {[%clk 0:02:57.6]} 3. d4 {[%clk 0:02:32.1]} 3... cxd4 {[%clk 0:02:58.8]} 4.
Nxd4 {[%clk 0:02:34]} 4... a6 {[%clk 0:02:59.6]} 5. c4 {[%clk 0:02:34]} 5... Qc7
{[%clk 0:03:00.2]} 6. Be2 {[%clk 0:02:33.7]} 6... Nf6 {[%clk 0:03:01.4]} 7. Nc3
{[%clk 0:02:34]} 7... Bb4 {[%clk 0:03:01.6]} 8. O-O {[%clk 0:02:32]} 8... O-O
{[%clk 0:02:59.1]} 9. f3 {[%clk 0:02:15.1]} 9... Nc6 {[%clk 0:02:58.6]} 10. Be3
{[%clk 0:02:08.9]} 10... Bd6 {[%clk 0:02:57.8]} 11. f4 {[%clk 0:01:50.9]} 11...
Nxd4 {[%clk 0:02:44.4]} 12. Qxd4 {[%clk 0:01:44.3]} 12... e5 {[%clk 0:02:36.7]}
13. Qd2 {[%clk 0:01:22.5]} 13... Bc5 {[%clk 0:02:31.5]} 14. f5 {[%clk
0:01:06.7]} 14... d6 {[%clk 0:02:29.2]} 15. Kh1 {[%clk 0:01:02.8]} 15... Bxe3
{[%clk 0:02:21.6]} 16. Qxe3 {[%clk 0:01:04.7]} 16... b6 {[%clk 0:02:19.7]} 17.
g4 {[%clk 0:01:03.1]} 17... Bb7 {[%clk 0:02:15.9]} 18. g5 {[%clk 0:01:04]} 18...
Nxe4 {[%clk 0:02:05.6]} 19. Nxe4 {[%clk 0:01:02.2]} 19... Qc5 {[%clk 0:02:04.3]}
20. Qd3 {[%clk 0:00:52.2]} 20... Rac8 {[%clk 0:01:37.6]} 21. Rac1 {[%clk
0:00:37.3]} 21... b5 {[%clk 0:01:34]} 22. Bf3 {[%clk 0:00:29.1]} 22... bxc4
{[%clk 0:01:02.1]} 23. Nxc5 {[%clk 0:00:27]} 23... cxd3 {[%clk 0:00:57.1]} 24.
Nxb7 {[%clk 0:00:28]} 1-0

[Event "*** Titled Tuesday 3|2 Blitz"]
[Site "Chess.com"]
[Date "2017.06.06"]
[Round "10"]
[White "wonderfultime"]
[Black "Federtiu"]
[Result "1-0"]
[WhiteElo "2657"]
[BlackElo "2449"]
[TimeControl "180+2"]
[EndTime "16:01:36 PDT"]
[Termination "wonderfultime won on time"]

1. d4 {[%clk 0:02:57.3]} 1... g6 {[%clk 0:02:59.8]} 2. g3 {[%clk 0:02:56.4]}
2... Bg7 {[%clk 0:02:59.6]} 3. Bg2 {[%clk 0:02:57.8]} 3... d6 {[%clk 0:02:59.8]}
4. Nf3 {[%clk 0:02:59.1]} 4... Nd7 {[%clk 0:02:59.7]} 5. O-O {[%clk 0:03:01]}
5... e5 {[%clk 0:03:01.1]} 6. c4 {[%clk 0:03:01.4]} 6... Ne7 {[%clk 0:03:01.8]}
7. Nc3 {[%clk 0:03:02.7]} 7... O-O {[%clk 0:03:02.5]} 8. Qc2 {[%clk 0:03:03.5]}
8... exd4 {[%clk 0:03:03]} 9. Nb5 {[%clk 0:02:52.4]} 9... Nc6 {[%clk 0:02:53.4]}
10. Rd1 {[%clk 0:02:49]} 10... Nde5 {[%clk 0:02:40]} 11. Nbxd4 {[%clk 0:02:12]}
11... Nxf3+ {[%clk 0:02:38.8]} 12. Nxf3 {[%clk 0:02:13.9]} 12... Bf5 {[%clk
0:02:39.7]} 13. Qb3 {[%clk 0:02:14.9]} 13... Na5 {[%clk 0:02:31]} 14. Qa4 {[%clk
0:02:09.4]} 14... c6 {[%clk 0:02:22.2]} 15. Nd4 {[%clk 0:01:43.3]} 15... Bxd4
{[%clk 0:01:19.2]} 16. Rxd4 {[%clk 0:01:45.2]} 16... Be6 {[%clk 0:01:17.9]} 17.
b3 {[%clk 0:01:23.4]} 17... c5 {[%clk 0:00:21]} 18. Rd2 {[%clk 0:01:23.9]} 18...
Rc8 {[%clk 0:00:13.8]} 19. Bb2 {[%clk 0:01:20.6]} 19... Qb6 {[%clk 0:00:10.7]}
20. Bc3 {[%clk 0:01:19.6]} 20... Nc6 {[%clk 0:00:11.6]} 21. Rxd6 {[%clk
0:01:20.7]} 21... Rfd8 {[%clk 0:00:10.9]} 22. Rad1 {[%clk 0:01:21.5]} 22... Nd4
{[%clk 0:00:08.8]} 23. Rxd8+ {[%clk 0:00:21.2]} 23... Rxd8 {[%clk 0:00:10.7]}
24. Rd2 {[%clk 0:00:19.1]} 1-0

[Event "*** Titled Tuesday 3|2 Blitz"]
[Site "Chess.com"]
[Date "2017.06.06"]
[Round "10"]
[White "Aikiigm"]
[Black "DryCounty"]
[Result "0-1"]
[WhiteElo "2418"]
[BlackElo "2479"]
[TimeControl "180+2"]
[EndTime "16:02:03 PDT"]
[Termination "DryCounty won by resignation"]

1. Nf3 {[%clk 0:03:02]} 1... Nf6 {[%clk 0:03:00.1]} 2. c4 {[%clk 0:03:02.2]}
2... g6 {[%clk 0:03:00.5]} 3. Nc3 {[%clk 0:03:03.1]} 3... Bg7 {[%clk 0:03:01.1]}
4. e4 {[%clk 0:03:04.5]} 4... O-O {[%clk 0:03:02.5]} 5. d4 {[%clk 0:03:05.8]}
5... d6 {[%clk 0:03:03.9]} 6. h3 {[%clk 0:03:07.3]} 6... a6 {[%clk 0:03:04.3]}
7. Be3 {[%clk 0:03:07.2]} 7... Nbd7 {[%clk 0:03:05]} 8. d5 {[%clk 0:03:07.8]}
8... c6 {[%clk 0:02:52.1]} 9. Be2 {[%clk 0:03:02.6]} 9... cxd5 {[%clk
0:02:47.7]} 10. exd5 {[%clk 0:03:03.7]} 10... Nc5 {[%clk 0:02:35.6]} 11. O-O
{[%clk 0:03:01.6]} 11... e5 {[%clk 0:02:26.1]} 12. dxe6 {[%clk 0:03:02.2]} 12...
Bxe6 {[%clk 0:02:26.5]} 13. Nd4 {[%clk 0:03:00.1]} 13... Bd7 {[%clk 0:02:20.5]}
14. Rc1 {[%clk 0:02:55.1]} 14... Re8 {[%clk 0:02:20.2]} 15. Qd2 {[%clk
0:02:55.8]} 15... Rc8 {[%clk 0:02:14.9]} 16. Bf3 {[%clk 0:02:55]} 16... Nfe4
{[%clk 0:02:08.9]} 17. Nxe4 {[%clk 0:02:56]} 17... Nxe4 {[%clk 0:02:09.7]} 18.
Qb4 {[%clk 0:02:57.1]} 18... a5 {[%clk 0:01:56.8]} 19. Qxb7 {[%clk 0:02:51.2]}
19... Rb8 {[%clk 0:01:57.1]} 20. Qa7 {[%clk 0:02:35.9]} 20... Rxb2 {[%clk
0:01:56.4]} 21. Nb5 {[%clk 0:02:18.7]} 21... Bxb5 {[%clk 0:01:29]} 22. cxb5
{[%clk 0:02:19.6]} 22... Rxb5 {[%clk 0:01:28.2]} 23. Rc7 {[%clk 0:02:20.4]}
23... Rf5 {[%clk 0:01:11.2]} 24. Bg4 {[%clk 0:02:14.7]} 24... Rfe5 {[%clk
0:00:57.4]} 25. Rxf7 {[%clk 0:02:13.7]} 25... R5e7 {[%clk 0:00:53.4]} 26. Rxe7
{[%clk 0:02:13.2]} 26... Rxe7 {[%clk 0:00:54.1]} 27. Qa6 {[%clk 0:02:11]} 27...
d5 {[%clk 0:00:48.1]} 28. Rd1 {[%clk 0:02:09.2]} 28... Nc3 {[%clk 0:00:44.9]}
29. Rd3 {[%clk 0:02:09.7]} 29... h5 {[%clk 0:00:36.6]} 30. Be6+ {[%clk 0:02:07]}
30... Kh7 {[%clk 0:00:37]} 31. Bg5 {[%clk 0:02:08.1]} 31... Rxe6 {[%clk
0:00:35.4]} 32. Qxe6 {[%clk 0:01:38.5]} 32... Qxg5 {[%clk 0:00:35.8]} 33. Rg3
{[%clk 0:01:39.8]} 33... Qf5 {[%clk 0:00:28.1]} 34. Qe7 {[%clk 0:01:36]} 34...
Ne4 {[%clk 0:00:27.1]} 35. Rf3 {[%clk 0:01:36.5]} 35... Qe5 {[%clk 0:00:24.6]}
36. Qd7 {[%clk 0:01:30.5]} 36... Kh6 {[%clk 0:00:22.4]} 37. g3 {[%clk
0:01:25.7]} 37... Ng5 {[%clk 0:00:22.3]} 38. Re3 {[%clk 0:01:24]} 38... Qa1+
{[%clk 0:00:22.1]} 39. Kg2 {[%clk 0:01:24.2]} 39... Qxa2 {[%clk 0:00:22.2]} 40.
Re7 {[%clk 0:01:17]} 40... Bd4 {[%clk 0:00:20.4]} 0-1

[Event "*** Titled Tuesday 3|2 Blitz"]
[Site "Chess.com"]
[Date "2017.06.06"]
[Round "10"]
[White "ProfCalculus"]
[Black "amurdercastle"]
[Result "0-1"]
[WhiteElo "2149"]
[BlackElo "2287"]
[TimeControl "180+2"]
[EndTime "16:02:16 PDT"]
[Termination "amurdercastle won on time"]

1. d4 {[%clk 0:03:02]} 1... d5 {[%clk 0:03:00.2]} 2. c4 {[%clk 0:03:03.9]} 2...
c6 {[%clk 0:02:59.5]} 3. Nc3 {[%clk 0:03:03.8]} 3... Nf6 {[%clk 0:03:00.4]} 4.
e3 {[%clk 0:03:03.8]} 4... e6 {[%clk 0:03:01.6]} 5. Nf3 {[%clk 0:03:03.6]} 5...
Nbd7 {[%clk 0:03:01.8]} 6. Qc2 {[%clk 0:03:05]} 6... Bd6 {[%clk 0:03:00.5]} 7.
g4 {[%clk 0:03:05.7]} 7... h6 {[%clk 0:03:00.3]} 8. Rg1 {[%clk 0:03:01.2]} 8...
e5 {[%clk 0:03:00.2]} 9. cxd5 {[%clk 0:02:56.5]} 9... cxd5 {[%clk 0:02:58.7]}
10. g5 {[%clk 0:02:48]} 10... hxg5 {[%clk 0:02:58.6]} 11. Nxg5 {[%clk
0:02:43.2]} 11... e4 {[%clk 0:02:52]} 12. h3 {[%clk 0:02:36.4]} 12... a6 {[%clk
0:02:37.1]} 13. Bd2 {[%clk 0:02:35.8]} 13... O-O {[%clk 0:02:30.3]} 14. O-O-O
{[%clk 0:02:27.6]} 14... b5 {[%clk 0:02:30.1]} 15. Kb1 {[%clk 0:02:18.9]} 15...
Nb6 {[%clk 0:02:25.4]} 16. f3 {[%clk 0:02:19.1]} 16... Bf5 {[%clk 0:02:02.5]}
17. fxe4 {[%clk 0:02:18]} 17... dxe4 {[%clk 0:02:03.7]} 18. Be2 {[%clk
0:02:06.8]} 18... b4 {[%clk 0:01:49.9]} 19. Na4 {[%clk 0:02:06.3]} 19... Rc8
{[%clk 0:01:50.2]} 20. Nc5 {[%clk 0:02:04.4]} 20... Nbd5 {[%clk 0:01:46.1]} 21.
Bxa6 {[%clk 0:01:54.7]} 21... Ra8 {[%clk 0:01:44.5]} 22. Bc4 {[%clk 0:01:55.3]}
22... Qe7 {[%clk 0:01:30.7]} 23. Qb3 {[%clk 0:01:45]} 23... Bxc5 {[%clk
0:01:12.1]} 24. dxc5 {[%clk 0:01:42.7]} 24... Qxc5 {[%clk 0:01:09.2]} 25. Rdf1
{[%clk 0:01:20.7]} 25... Bg6 {[%clk 0:00:56.3]} 26. Ne6 {[%clk 0:01:09]} 26...
fxe6 {[%clk 0:00:55]} 27. Rxg6 {[%clk 0:01:09.7]} 27... Rac8 {[%clk 0:00:47.1]}
28. Rc1 {[%clk 0:01:04.5]} 28... Qd6 {[%clk 0:00:28.2]} 29. Rcg1 {[%clk
0:01:02.9]} 29... Rc7 {[%clk 0:00:25.8]} 30. R1g5 {[%clk 0:00:48.6]} 30... Qc5
{[%clk 0:00:20.9]} 31. Be2 {[%clk 0:00:23.1]} 31... Qd6 {[%clk 0:00:21.7]} 32.
Bg4 {[%clk 0:00:16.8]} 32... Nxg4 {[%clk 0:00:20.8]} 33. Rxg4 {[%clk 0:00:16.3]}
33... Qh2 {[%clk 0:00:21.5]} 0-1